Cogmind - Beta 13 @@@ ROGUE MODE // 2024.04.29 @ 10:48:24 Player: Cherman0 Result: Destroyed by D-53 Grenadier with Mini Grenade Launcher Performance ------------- Evolutions (0) 0 Regions Visited (4) 800 Robots Destroyed (32) 160 Value Destroyed (606) 606 Prototype IDs (27) 540 Alien Tech Used (0) 0 Bonus (300) 300 TOTAL SCORE: 2406 Bonus ------- Aligned with FarCom 300 Cogmind --------- Core Integrity 0/250 Matter 197/300 Energy 250/250 System Corruption 1% Temperature Cool (0) Movement Treading (320) Ox2 Location -9/Mines Parts ------- > --- POWER (1) -------- Ion Engine > --- PROPULSION (2) --- Light Treads > --- UTILITY (2) ------ High-capacity Storage Unit > --- WEAPON (2) ------- (None) > --- INVENTORY (20) --- Light Ion Engine Light Treads High-capacity Battery (250) High-capacity Matter Pod (200) Structural Scanner Improved Terrain Scanner 0b10 Alert Chip Light Armor Plating Light Armor Plating Light Armor Plating EM Pulse Gun EM Pulse Gun Light Cannon Light Cannon Light Cannon Light Cannon Light Cannon Light Cannon Light Cannon Mining Laser Peak State ------------ > --- POWER ------------ Ion Engine > --- PROPULSION ------- Light Treads Light Treads > --- UTILITY ---------- High-capacity Storage Unit Seismic Detector > --- WEAPON ----------- Light Cannon Light Cannon > --- INVENTORY -------- Light Ion Engine Aluminum Leg Aluminum Leg Aluminum Leg High-capacity Matter Pod Structural Scanner Sensor Array Improved Terrain Scanner EM Pulse Gun Light Assault Rifle Light Cannon Light Cannon Light Cannon Light Cannon Light Cannon Light Cannon Grenade Launcher Mining Laser [Rating: 9] Favorites ----------- Power Ion Engine Engine Ion Engine Propulsion Light Treads Treads Light Treads Leg Aluminum Leg Utility High-capacity Storage Unit Device Sensor Array Storage High-capacity Storage Unit Weapon Light Cannon Energy Gun Medium Laser Ballistic Gun Assault Rifle Ballistic Cannon Light Cannon Launcher Grenade Launcher Build | -11 -10 -10 -10 -9 ------- Run | Yrd Mat Min Exi Min Slots Evolved . | . . . . . Power . | . . . . . Propulsion . | . . . . . Utility . | . . . . . Weapon . | . . . . . Parts Attached 24 | 3 17 2 . 2 Power 1 | . 1 . . . Engine 1 | . 1 . . . Core . | . . . . . Reactor . | . . . . . Propulsion 11 | 2 9 . . . Treads 7 | 2 5 . . . Leg 4 | . 4 . . . Wheel . | . . . . . Hover . | . . . . . Flight . | . . . . . Utility 3 | 1 2 . . . Device 2 | 1 1 . . . Storage 1 | . 1 . . . Processor . | . . . . . Hackware . | . . . . . Protection . | . . . . . Artifact . | . . . . . Weapon 9 | . 5 2 . 2 Energy Gun 2 | . 2 . . . Energy Cannon . | . . . . . Ballistic Gun . | . . . . . Ballistic Cannon 4 | . 3 1 . . Launcher 3 | . . 1 . 2 Special Weapon . | . . . . . Impact Weapon . | . . . . . Slashing Weapon . | . . . . . Piercing Weapon . | . . . . . Special Melee Weapon . | . . . . . Unidentified Prototypes . | . . . . . Parts Lost 6 | . 2 . . 4 Power 1 | . 1 . . . Propulsion 2 | . 1 . . 1 Utility 1 | . . . . 1 Weapon 2 | . . . . 2 Highest Loss Streak 2 | . 1 . . 2 To Critical Strikes . | . . . . . Average Slot Usage (%) 99 | . 99 100 100 86 Engine 13 | . 13 14 14 14 Treads 26 | . 25 28 28 28 Device 13 | . 14 14 14 7 Storage 14 | . 14 14 14 14 Energy Gun 2 | . 5 . . . Ballistic Gun 2 | . 5 . . . Ballistic Cannon 21 | . 17 24 28 14 Launcher 1 | . . 3 . 8 Naked Turns . | . . . . . Heaviest Build 52 | 13 52 52 52 52 Greatest Support 40 | 40 40 40 40 40 Greatest Overweight (x) 2 | . 2 1 1 2 Average Overweight (x) . | . . 1 1 1 Largest Inventory Capacity 20 | 8 20 20 20 20 Average Capacity 19 | 8 18 20 20 20 Most Carried 20 | 7 18 20 20 20 Average Carried 15 | 3 12 19 19 20 Final Capacity 20 | 8 20 20 20 20 Final Carried 20 | 4 18 20 20 20 Class Distribution -------------------- 96% | Mutant 3% | Scavenger-Mutant Dominant Class ---------------- Mutant | -10/Materials Mutant | -10/Mines Mutant | -10/Exiles Mutant | -9/Mines Resources | -11 -10 -10 -10 -9 ----------- Run | Yrd Mat Min Exi Min Matter Collected 968 | 281 598 58 . 31 Remotely . | . . . . . Salvage Created 1092 | 197 791 72 . 32 Parts 60 | 14 41 5 . . Haulers Intercepted 2 | . 2 . . . Recyclers Shooed 1 | . 1 . . . Parts Field Recycled . | . . . . . Retrieved Matter . | . . . . . Parts Self-Destructed . | . . . . . Prevented . | . . . . . Kills | -11 -10 -10 -10 -9 ------- Run | Yrd Mat Min Exi Min Combat Hostiles Destroyed 29 | . 12 3 . 14 Guns 10 | . 10 . . . Cannons 2 | . 2 . . . AOE 17 | . . 3 . 14 Classes Destroyed 9 | 2 5 1 . 1 Worker 2 | . 2 . . . Tunneler 5 | 5 . . . . Hauler 2 | . 2 . . . Recycler 4 | 1 2 1 . . Operator 1 | . 1 . . . Watcher 3 | . 3 . . . Swarmer 3 | . . 3 . . Grunt 12 | . 12 . . . Assembled 14 | . . . . 14 Best Kill Streak 14 | 2 4 3 . 14 Combat Bots Only 14 | . 3 3 . 14 Max Kills in Single Turn 3 | 1 2 1 . 3 Gunslinging . | . . . . . Exploded 3 | . . 1 . 3 Melee . | . . . . . Uniques/NPCs Destroyed . | . . . . . Combat | -11 -10 -10 -10 -9 -------- Run | Yrd Mat Min Exi Min Hostile Shots Fired 112 | . 62 2 23 25 Missed 25 | . 11 1 8 5 Damage Taken 1446 | . 668 37 276 465 Core 259 | . 98 . 59 102 Absorbed by Shields . | . . . . . Regen/Repaired (Parts) 146 | . 146 . . . Core Remaining (%) 100 | 100 . . . . Volleys Fired 98 | 17 65 4 1 11 Largest 2 | 2 2 2 1 2 Hottest 70 | 60 70 70 35 60 Shots Fired 182 | 34 129 5 1 13 Gun 143 | 34 109 . . . Cannon 23 | . 20 2 1 . Launcher 16 | . . 3 . 13 Special . | . . . . . Kinetic 94 | 17 74 2 1 . Thermal 54 | . 54 . . . Explosive 16 | . . 3 . 13 Electromagnetic 18 | 17 1 . . . Robot Hit Streak 11 | 7 11 1 . 3 Robot Miss Streak 7 | 1 7 1 . 1 Penetration Max . | . . . . . Secondary Targets 1 | . 1 . . . Max Gunslinging Chain 1 | . 1 . . . Shots Hit Robots 110 | 22 84 1 . 3 Core Hits 81 | 6 39 6 . 30 Critical Kills . | . . . . . Critical Parts Destroyed . | . . . . . Critical Strikes 1 | . 1 . . . Burn 1 | . 1 . . . Melee Attacks . | . . . . . Impact . | . . . . . Slashing . | . . . . . Piercing . | . . . . . Sneak Attacks . | . . . . . Combat Hostiles . | . . . . . Follow-up Attacks . | . . . . . Damage Inflicted 2491 | 292 1187 218 . 794 Guns 1234 | 292 942 . . . Cannons 254 | . 239 15 . . Explosions 987 | . . 193 . 794 Melee . | . . . . . Ramming 16 | . 6 10 . . Kinetic 864 | 121 728 15 . . Thermal 437 | . 437 . . . Explosive 987 | . . 193 . 794 Electromagnetic 187 | 171 16 . . . Impact . | . . . . . Slashing . | . . . . . Piercing . | . . . . . Highest Corruption 1 | . . . . 1 Average Corruption 1 | . . . . 1 Corruption Purged . | . . . . . Corruption Blocked . | . . . . . Overload Shots . | . . . . . Overflow Damage 18 | . . . . 18 Projectiles . | . . . . . Explosions 18 | . . . . 18 Melee . | . . . . . Knockbacks 5 | . 5 . . . Impact . | . . . . . Kinetic 5 | . 5 . . . Secondary . | . . . . . Self-Inflicted Damage 103 | . . 28 . 75 Shots 6 | . . 1 . 5 Rammed 5 | . 2 3 . . Targets Rammed 5 | . 2 3 . . Kicked . | . . . . . Crushed . | . . . . . Highest Temperature 234 | 20 234 9 20 25 Average Temperature 58 | 20 68 6 6 13 Received Heat Transfer 623 | . 423 . 140 60 Siege Activations . | . . . . . Robots Corrupted . | . . . . . Combat Hostiles . | . . . . . Parts Fried 2 | 2 . . . . Impact Corruptions . | . . . . . Robots Melted . | . . . . . Combat Hostiles . | . . . . . Parts Melted 1 | . 1 . . . Heat Transferred 1369 | . 1369 . . . Parts Sabotaged . | . . . . . Parts Stolen . | . . . . . Parts Stripped . | . . . . . Power Chain Reactions . | . . . . . Alert | -11 -10 -10 -10 -9 ------- Run | Yrd Mat Min Exi Min Peak Influence 274 | 30 274 117 . 34 Initial 28 | . 19 28 . . Average 60 | 19 87 26 . 14 Maximum Alert Level 1 | . 1 . . . Low Security (%) 95 | 100 92 100 . 100 Level 1 4 | . 7 . . . Level 2 . | . . . . . Level 3 . | . . . . . Level 4 . | . . . . . Level 5 . | . . . . . High Security . | . . . . . Max Security . | . . . . . Squads Dispatched 3 | . 3 . . . Investigation 2 | . 2 . . . Extermination . | . . . . . Reinforcement 1 | . 1 . . . Assault . | . . . . . Garrison . | . . . . . Intercept . | . . . . . Searches Triggered . | . . . . . Construction Impeded . | . . . . . Haulers Reinforced . | . . . . . Active Scanning Responses . | . . . . . Cargo Convoy Interrupts . | . . . . . Stealth | -11 -10 -10 -10 -9 --------- Run | Yrd Mat Min Exi Min Distress Signals . | . . . . . Communications Jammed . | . . . . . Distress Signals . | . . . . . Times Spotted 51 | . 24 2 7 18 Peak Tracking Total 9 | . 5 2 9 6 Tactical Retreats 2 | . 2 . . . Traps | -11 -10 -10 -10 -9 ------- Run | Yrd Mat Min Exi Min Traps Triggered . | . . . . . Indirectly . | . . . . . Trap Hack Attempts . | . . . . . Triggered . | . . . . . Disarmed . | . . . . . Reprogrammed . | . . . . . Reused . | . . . . . Traps Extracted . | . . . . . Installed . | . . . . . Triggered . | . . . . . Machines | -11 -10 -10 -10 -9 ---------- Run | Yrd Mat Min Exi Min Machines Disabled 2 | . 1 . 1 . Max in Single Turn 1 | . 1 . 1 . Machines Repaired . | . . . . . Machines Dismantled . | . . . . . Machines Sabotaged . | . . . . . Overloaded Fab Kills . | . . . . . Hacking | -11 -10 -10 -10 -9 --------- Run | Yrd Mat Min Exi Min Machines Accessed 11 | . 9 . 2 . Terminals 6 | . 6 . . . Fabricators . | . . . . . Repair Stations 1 | . 1 . . . Recycling Units 2 | . 2 . . . Scanalyzers . | . . . . . Garrison Access . | . . . . . Total Hacks 32 | . 30 . 2 . Successful 16 | . 14 . 2 . Failed 16 | . 16 . . . Catastrophic 1 | . 1 . . . Database Lockouts . | . . . . . Manual 14 | . 13 . 1 . Terminals 18 | . 18 . . . Fabricators . | . . . . . Repair Stations 8 | . 8 . . . Recycling Units 4 | . 4 . . . Scanalyzers . | . . . . . Garrison Access . | . . . . . Terminal Hacks 7 | . 5 . 2 . Record 1 | . . . 1 . Prototype ID Bank 2 | . 2 . . . Terminal Index 1 | . 1 . . . Locate Traps 1 | . 1 . . . Hauler Manifests 1 | . 1 . . . Derelict Proto ID Bank 1 | . . . 1 . Fabricator Hacks . | . . . . . Repair Station Hacks 6 | . 6 . . . Scan Component 3 | . 3 . . . Repair 3 | . 3 . . . Recycling Unit Hacks . | . . . . . Scanalyzer . | . . . . . Garrison Access Hacks . | . . . . . Unauthorized Hacks 3 | . 3 . . . Terminals 1 | . 1 . . . Operators 1 | . 1 . . . Fabricators . | . . . . . Repair Stations . | . . . . . Recycling Units 2 | . 2 . . . Tunnel 2 | . 2 . . . Scanalyzers . | . . . . . Garrison Access . | . . . . . Data Cores Recovered . | . . . . . Used . | . . . . . Hacking Detections 7 | . 7 . . . Full Trace Events . | . . . . . Feedback Events . | . . . . . Feedback Blocked . | . . . . . Robot Schematics Acquired . | . . . . . Robots Built . | . . . . . Authchips . | . . . . . Time . | . . . . . Total Robot Build Rating . | . . . . . Part Schematics Acquired . | . . . . . Parts Built . | . . . . . Authchips . | . . . . . Time . | . . . . . Total Part Build Rating . | . . . . . Parts Repaired 3 | . 3 . . . Time 78 | . 78 . . . Parts Recycled . | . . . . . Recycled Matter . | . . . . . Retrieved Matter . | . . . . . Retrieved Components . | . . . . . Parts Scanalyzed . | . . . . . Part Schematics Acquired . | . . . . . Parts Damaged . | . . . . . Bothacking | -11 -10 -10 -10 -9 ------------ Run | Yrd Mat Min Exi Min Used RIF Installer . | . . . . . Robots Hacked . | . . . . . Non-combat . | . . . . . Combat . | . . . . . Robot Hacks Applied . | . . . . . Relay Couplers Released . | . . . . . Fabnet Peak Effective % . | . . . . . Robots Rewired . | . . . . . Allies Hacked . | . . . . . Hacks Repelled . | . . . . . Allies | -11 -10 -10 -10 -9 -------- Run | Yrd Mat Min Exi Min Total Allies 2 | . . 2 . . Largest Group 2 | . . 2 2 . Highest-Rated Group 49 | . . 49 49 . Highest-Rated Ally 31 | . . 31 31 . Total Orders . | . . . . . Ally Attacks . | . . . . . Total Damage . | . . . . . Kills . | . . . . . Allies Corrupted . | . . . . . Allies Melted . | . . . . . Intel | -11 -10 -10 -10 -9 ------- Run | Yrd Mat Min Exi Min Robot Analysis Total . | . . . . . Derelict Logs Recovered 1 | . . 1 . . Drone Launches . | . . . . . Drone Recoveries . | . . . . . Exploration | -11 -10 -10 -10 -9 ------------- Run | Yrd Mat Min Exi Min Turns Passed 4747 | 131 2249 1447 817 103 Spaces Moved 1821 | 34 826 590 339 32 Core . | . . . . . Treads 1775 | 24 790 590 339 32 Legs 46 | 10 36 . . . Wheels . | . . . . . Hover . | . . . . . Flight . | . . . . . Fastest Speed 120 | 120 160 240 240 240 Average Speed 233 | 148 229 240 240 242 Slowest Speed 320 | 160 320 240 240 320 Overloaded Moves . | . . . . . Propulsion Burnouts . | . . . . . Robots Hopped . | . . . . . Cave-ins Triggered . | . . . . . Exploration Rate (%) 55 | 4 96 98 70 10 Regions Visited 4 Branch Regions 3 Pre-discovered Areas 3 | . 2 . 1 . Known Exits Taken . | . . . . . Unknown Exits Taken 4 | 1 1 1 1 . Scrap Searched 1 | . . 1 . . Spaces Dug 38 | . . 17 . 21 Terrain Destroyed 95 | . . 26 . 69 Melee . | . . . . . Projectile . | . . . . . AOE 95 | . . 26 . 69 Terrain Rammed . | . . . . . Walls Destroyed . | . . . . . Machines Disabled . | . . . . . Actions | -11 -10 -10 -10 -9 --------- Run | Yrd Mat Min Exi Min Total 2127 | 82 1044 613 343 45 Wait 143 | 23 111 9 . . Move 1817 | 33 825 589 338 32 Hop . | . . . . . Pick Up 25 | 2 17 4 2 . Fast Attach 8 | 1 7 . . . Attach 3 | 2 1 . . . Detach . | . . . . . Swap 13 | . 9 2 . 2 Drop 15 | 4 7 2 2 . Fire 98 | 17 65 4 1 11 Melee . | . . . . . Ram . | . . . . . Kick . | . . . . . Crush 5 | . 2 3 . . Escape Stasis . | . . . . . Rewire . | . . . . . Trap . | . . . . . Miscellaneous . | . . . . . Route ------- -11/Scrapyard -10/Materials (discovered 5 exits: [*Mat x3] / [*Min x2]) -10/Mines (discovered 3 exits: [*Mat x2] / *Exi) -10/Exiles (discovered 2 exits: [*Min x2]) -9/Mines History --------- Turn | Location | Event 11 | -11/Scrapyard | Discovered new exit (range 2) 132 | -11/Scrapyard | Entered Materials 313 | -10/Materials | Build established: Mutant 330 | -10/Materials | Discovered new exit (range 14) 680 | -10/Materials | Discovered new exit (range 16) 1074 | -10/Materials | Discovered new exit (range 3) 1547 | -10/Materials | Repaired Lgt. Treads 1654 | -10/Materials | Discovered new exit (range 4) 1805 | -10/Materials | Discovered new exit (range 14) 2121 | -10/Materials | Repaired Lgt. Treads 2148 | -10/Materials | Repaired Lgt. Treads 2381 | -10/Materials | Entered Mines 2787 | -10/Mines | Joined a pair of Derelicts in attacking an 0b10 outpost 3171 | -10/Mines | Deemed a non-threat by the Exiles lab entrance 3171 | -10/Mines | Discovered new exit (range 5) 3329 | -10/Mines | Discovered new exit (range 4) 3331 | -10/Mines | Learned Materials emergency access door positions 3454 | -10/Mines | Discovered new exit (range 7) 3828 | -10/Mines | Entered Exiles 3828 | -10/Exiles | Accompanied by 2 allies 3858 | -10/Exiles | Led the pair of lost Derelicts to a safe place 3864 | -10/Exiles | Discovered new exit (range 15) 3886 | -10/Exiles | Met 8R-AWN 3927 | -10/Exiles | Met EX-HEX 4035 | -10/Exiles | Met EX-DEC 4252 | -10/Exiles | Learned location of Zion (-6) 4317 | -10/Exiles | Met EX-BIN 4346 | -10/Exiles | Aligned with FarCom system 4348 | -10/Exiles | Given EX-Vault access code 4404 | -10/Exiles | Opened EX-Vault 4423 | -10/Exiles | Found 0b10 Alert Chip 4470 | -10/Exiles | Warned to stay clear of 0b10 Research branches 4591 | -10/Exiles | Attacked by the Exiles 4625 | -10/Exiles | Discovered new exit (range 10) 4642 | -10/Exiles | Core integrity fell below 50% 4645 | -10/Exiles | Left Exiles lab with 0b10 Alert Chip 4645 | -10/Exiles | Entered Mines 4673 | -9/Mines | Assembled infested the area 4678 | -9/Mines | Assisted by a Guerilla fighting off Assembled 4708 | -9/Mines | Core integrity fell below 20% 4739 | -9/Mines | Destroyed 14 combat bots 4748 | -9/Mines | Destroyed by D-53 Grenadier with Mini Grenade Launcher Last Messages --------------- 04706_ as-11709 destroyed. 04706_ Grenade Launcher destroyed. 04706_ Destroyed Grenade Launcher. 04708_ as-58280 destroyed. 04712_ as-04007 destroyed. 04714_ The unstable cave ceiling collapses. 04714_ as-95096 destroyed. 04716_ as-09867 destroyed. 04718_ as-93338 destroyed. 04718_ Destroyed Asb. Hover Unit. 04718_ as-88965 destroyed. 04718_ as-29964 destroyed. 04720_ The unstable cave ceiling collapses. 04730_ Acquired 31 matter. 04731_ The unstable cave ceiling collapses. 04745_ C-30 ARC bursts open, deploying its payload. 04745_ D-53 Grenadier unfolds itself. 04745_ Lgt. Treads destroyed. 04746_ The unstable cave ceiling collapses. 04746_ Grenade Launcher destroyed. Map ----- +----------------------------------------------------+ | ???????????????????????????????????????? | | ???????????????????????????????????????? | | ???????????????????????????????????????? | | ???????????????????????????????????????? | | ???????????????????????????????????????? | | ???????????????????????????????????????? | | ???????????????????????????????????????? | | ???????????????????????????????????????? | | ???????????????????????????????????????? | | ???????????????????????????????????????? | | ???????????????????????????????????????? | | ????????#??????????????????????????????? | | ???????## ?????????????????????????????? | | ???????# ?????????????????????????????? | | ???????? ?????????????????????????????? | | ????????# ????????????????????????????? | | ????????# ????????????????????????????? | | ????????# ????????????????????????????? | | ???????## %#???????????????????????????? | | ???????# d ##?????????????????????????? | | ????????? ######????????????????????? | | ?????????##t # ##???????????????????? | | ?????????# d #???#???????????????? | | ?????????## #?? ##??????????????? | | ?????????# ##? ###????????????? | | ?????????## @ # ?????????????? | | ????????## # #???????????????? | | ???????## = #????????????????? | | ?????### #????????????????? | | ????# # ##????????????????? | | ????# ###?????????????????? | | ????# # ##??????????????????? | | ????# # # ##???????????????????? | | ????# # ##????????????????????? | | ????### # # #?????????????????????? | | ??????# % ###?????????????????????? | | ??????# # ????????????????????????? | | ??????# #a ## #????????????????????????? | | ??????# #????????????????????????? | | ??????## ?????????????????????????? | | ???????# ###?????????????????????????? | | ????????# #???????????????????????????? | | ???????? #???????????????????????????? | | ???????? ###???????????????????????????? | | ???????? ??????????????????????????????? | | ???????# ??????????????????????????????? | | ???????# ??????????????????????????????? | | ???????# ??????????????????????????????? | | ???????# ??????????????????????????????? | | ???????#???????????????????????????????? | +----------------------------------------------------+ Best States ------------- Heat Dissipation 25 Energy Generation 10 Energy Capacity 250 Matter Stores 300 Matter Capacity 300 Sight Range 16 Robot Scan Range 14 Terrain Scan Density 10 Evasion (%) 45 Recoil Reduction 2 Item Schematics ----------------- None Robot Schematics ------------------ None Fabricated ------------ Nothing Alien Tech Used ----------------- None Achievements -------------- None Challenges ------------ None Game ------ Seed TargetingMultinovaProjector Manual? 0 Play Time 00:21:29 Cumulative 67.7 hours Start 2024.04.29 @ 10:28:01 End 2024.04.29 @ 10:48:24 Sessions 1 Manual Loads 0 Difficulty Rogue Special Mode None Game No. 42 Rogue 42 Adventurer 0 Explorer 0 Win Type - Total 0 Types 0/0/0/0/0/0/0/0/0 Lore% 28 Gallery% 38 Achievement% 32 Wizard Run 0 Options --------- Layout 0 ASCII 0 Keyboard 0 Movement Numpad Keybinds 1 Fullscreen 1 Font 18/SmallcapsGlow Map View 76x50 Zoom Use 0% Tactical HUD 1 Map Filters NONE Filters NONE Steam 1 RUN: 50851c9e-babd-4b79-9ecb-7b39bed36c2f